fUST/lending_fUST_20250206
["ID","MTS","AMOUNT","RATE_DAILY","PERIOD"]
[351857285,1738822252201,-500.0,0.00014657,2]
[351857286,1738822252210,-863.89,0.00014657,2]
[351857287,1738822252216,-500.0,0.00014657,2]
[351857288,1738822252224,-500.0,0.00014657,2]
[351857289,1738822252233,-500.0,0.00014657,2]
[351857290,1738822252241,-549.43,0.00014657,2]
[351857291,1738822252251,-501.99,0.00014657,2]
[351857292,1738822252261,-500.0,0.00014657,2]
[351857293,1738822252271,-500.0,0.00014657,2]
[351857294,1738822252281,-2174.68,0.00014657,2]
[351857295,1738822252288,-900.15,0.00014657,2]
[351857296,1738822252295,-500.0,0.00014657,2]
[351857297,1738822252301,-817.5,0.00014657,2]
[351857298,1738822252307,-689.49,0.00014657,2]
[351857299,1738822252313,-500.0,0.00014657,2]
[351857300,1738822252321,-2225.74,0.00014657,2]
[351857301,1738822252328,-500.0,0.00014657,2]
[351857302,1738822252337,-500.0,0.00014657,2]
[351857303,1738822252348,-509.17,0.00014657,2]
[351857304,1738822252358,-651.59,0.00014657,2]
[351857305,1738822252368,-500.0,0.00014657,2]
[351857306,1738822252378,-6536.28,0.00014657,2]
[351857307,1738822252389,-500.0,0.00014657,2]
[351857308,1738822252399,-4003.24,0.00014657,2]
[351857309,1738822252409,-990.46,0.00014657,2]
[351857310,1738822252418,-2124.74,0.00014657,2]
[351857311,1738822252428,-4141.69,0.00014657,2]
[351857312,1738822252439,-1160.64,0.00014657,2]
[351857313,1738822252448,-997.12,0.00014657,2]
[351857314,1738822252458,-878.67,0.00014657,2]
[351857315,1738822252468,-700.35,0.00014657,2]
[351857316,1738822252477,-500.0,0.00014657,2]
[351857317,1738822252487,-500.0,0.00014657,2]
[351857318,1738822252498,-2843.33,0.00014657,2]
[351857319,1738822252507,-500.0,0.00014657,2]
[351857320,1738822252518,-500.0,0.00014657,2]
[351857321,1738822252528,-2156.17,0.00014657,2]
[351857322,1738822252538,-1609.52,0.00014657,2]
[351857323,1738822252548,-500.0,0.00014657,2]
[351857324,1738822252557,-500.0,0.00014657,2]
[351857325,1738822252567,-500.0,0.00014657,2]
[351857326,1738822252576,-64575.77,0.00014657,2]
[351857327,1738822252585,-2044.62,0.00014657,2]
[351857328,1738822252594,-500.0,0.00014657,2]
[351857329,1738822252603,-3492.4,0.00014657,2]
[351857330,1738822252612,-411.049134,0.00014657,2]
[351857331,1738822252622,-500.0,0.00014657,2]
[351857332,1738822252631,-411.049134,0.00014657,2]
[351857333,1738822252640,-500.0,0.00014657,2]
[351857334,1738822252650,-500.0,0.00014657,2]
[351857335,1738822252660,-773.15,0.00014657,2]
[351857336,1738822252669,-3226.29,0.00014657,2]
[351857337,1738822252685,-2918.01,0.00014657,2]
[351857338,1738822252697,-527.56,0.00014657,2]
[351857339,1738822252707,-177.432692,0.00014657,2]
[351857340,1738822252718,-918.34,0.00014657,2]
[351857341,1738822252728,-151.0,0.00014657,2]
[351857342,1738822252738,-22581.88,0.00014657,2]
[351857343,1738822252747,-1568.08,0.00014657,2]
[351857344,1738822252758,-177.432692,0.00014657,2]
[351857345,1738822252768,-1919.14,0.00014657,2]
[351857346,1738822252778,-500.0,0.00014657,2]
[351857347,1738822252790,-500.0,0.00014657,2]
[351857348,1738822252801,-761.39,0.00014657,2]
[351857349,1738822252812,-500.0,0.00014657,2]
[351857350,1738822252823,-151.0,0.00014657,2]
[351857351,1738822252833,-1726.57,0.00014657,2]
[351857352,1738822252842,-500.0,0.00014657,2]
[351857353,1738822252852,-210.322329,0.00014657,2]
[351857354,1738822252862,-2363.23,0.00014657,2]
[351857355,1738822252872,-735.32,0.00014657,2]
[351857356,1738822252882,-500.0,0.00014657,2]
[351857357,1738822252891,-554.61,0.00014657,2]
[351857358,1738822252901,-672.13,0.00014657,2]
[351857359,1738822252914,-608.4,0.00014657,2]
[351857360,1738822252924,-500.0,0.00014657,2]
[351857361,1738822252933,-659.58,0.00014657,2]
[351857362,1738822252943,-6300.08,0.00014657,2]
[351857363,1738822252954,-500.0,0.00014657,2]
[351857364,1738822252964,-864.28,0.00014657,2]
[351857365,1738822252973,-563.42,0.00014657,2]
[351857366,1738822252982,-1097.7,0.00014657,2]
[351857367,1738822252993,-535.56,0.00014657,2]
[351857368,1738822253004,-500.0,0.00014657,2]
[351857369,1738822253014,-624.42,0.00014657,2]
[351857370,1738822253024,-1837.43,0.00014657,2]
[351857371,1738822253033,-616.73,0.00014657,2]
[351857372,1738822253043,-6891.62,0.00014657,2]
[351857373,1738822253052,-1074.71,0.00014657,2]
[351857374,1738822253061,-500.0,0.00014657,2]
[351857375,1738822253071,-500.0,0.00014657,2]
[351857376,1738822253080,-982.53,0.00014657,2]
[351857377,1738822253090,-500.0,0.00014657,2]
[351857378,1738822253100,-500.0,0.00014657,2]
[351857379,1738822253110,-151.0,0.00014657,2]
[351857380,1738822253120,-699.63,0.00014657,2]
[351857381,1738822253129,-500.0,0.00014657,2]
[351857382,1738822253138,-500.0,0.00014657,2]
[351857383,1738822253147,-151.0,0.00014657,2]
[351857384,1738822253157,-500.0,0.00014657,2]
[351857385,1738822253167,-558.86,0.00014657,2]
[351857386,1738822253176,-500.0,0.00014657,2]
[351857387,1738822253186,-500.0,0.00014657,2]
[351857388,1738822253195,-500.0,0.00014657,2]
[351857389,1738822253204,-998.87,0.00014657,2]
[351857390,1738822253213,-501.0,0.0001468,2]
[351857391,1738822253223,-1174.80537733,0.00014685,2]
[351857392,1738822253233,-164.554599,0.00014697,2]
[351857393,1738822253243,-150.0,0.000147,2]
[351857394,1738822253253,-236.07825901,0.00014794,2]
[351857395,1738822253263,-500.0,0.00014794,2]
[351857396,1738822253273,-816.0,0.00014794,2]
[351857397,1738822253282,-500.0,0.00014794,2]
[351857398,1738822253291,-200.38614227,0.00014794,2]
[351857399,1738822253301,-500.0,0.00014794,2]
[351857400,1738822253311,-581.43,0.00014794,2]
[351857401,1738822253321,-629.07,0.00014794,2]
[351857402,1738822253331,-583.65,0.00014794,2]
[351857403,1738822253340,-500.0,0.00014794,2]
[351857404,1738822253350,-500.0,0.00014794,2]
[351857405,1738822253360,-500.0,0.00014794,2]
[351857406,1738822253370,-500.0,0.00014794,2]
[351857407,1738822253380,-500.0,0.00014794,2]
[351857408,1738822253390,-605.28,0.00014794,2]
[351857409,1738822253399,-500.0,0.00014794,2]
[351857410,1738822253408,-500.0,0.00014794,2]
[351857411,1738822253418,-927.14,0.00014794,2]
[351857412,1738822253428,-500.0,0.00014794,2]
[351857413,1738822253438,-636.61,0.00014794,2]
[351857414,1738822253447,-710.94,0.00014794,2]
[351857415,1738822253456,-500.0,0.00014794,2]
[351857416,1738822253470,-596.81,0.00014794,2]
[351857417,1738822253479,-202.2442338,0.00014794,2]
[351857418,1738822253488,-718.41,0.00014794,2]
[351857419,1738822253497,-500.0,0.00014794,2]
[351857420,1738822253506,-500.0,0.00014794,2]
[351857421,1738822253659,-243.74158017,0.00014794,2]
[351857422,1738822253670,-500.0,0.00014794,2]
[351857423,1738822253678,-500.0,0.00014794,2]
[351857424,1738822253689,-686.86,0.00014794,2]
[351857425,1738822253698,-500.0,0.00014794,2]
[351857426,1738822253707,-627.32,0.00014794,2]
[351857427,1738822253716,-503.64,0.00014794,2]
[351857428,1738822253725,-962.59,0.00014794,2]
[351857429,1738822253735,-500.0,0.00014794,2]
[351857430,1738822253744,-684.0,0.00014794,2]
[351857431,1738822253754,-500.0,0.00014794,2]
[351857432,1738822253764,-500.0,0.00014794,2]
[351857433,1738822253773,-500.0,0.00014794,2]
[351857434,1738822253783,-1220.69,0.00014794,2]
[351857435,1738822253792,-500.0,0.00014794,2]
[351857436,1738822253801,-664.19,0.00014794,2]
[351857437,1738822253810,-603.78,0.00014794,2]
[351857438,1738822253819,-500.0,0.00014794,2]
[351857439,1738822253828,-500.0,0.00014794,2]
[351857440,1738822253837,-500.0,0.00014794,2]
[351857441,1738822253846,-929.79,0.00014794,2]
[351857442,1738822253855,-500.0,0.00014794,2]
[351857443,1738822253865,-340.67054355,0.00014794,2]
[351857444,1738822253874,-594.09,0.00014794,2]
[351857445,1738822253884,-858.78,0.00014794,2]
[351857446,1738822253893,-2224.99,0.00014794,2]
[351857447,1738822253903,-813.82,0.00014794,2]
[351857448,1738822253915,-500.0,0.00014794,2]
[351857449,1738822253924,-500.0,0.00014794,2]
[351857450,1738822253934,-844.65,0.00014794,2]
[351857451,1738822253944,-2202.19,0.00014794,2]
[351857452,1738822253954,-500.0,0.00014794,2]
[351857453,1738822253963,-689.2,0.00014794,2]
[351857454,1738822253972,-500.0,0.00014794,2]
[351857455,1738822253980,-500.0,0.00014794,2]
[351857456,1738822253991,-1474.55,0.00014794,2]
[351857457,1738822254000,-500.0,0.00014794,2]
[351857458,1738822254009,-500.0,0.00014794,2]
[351857459,1738822254018,-500.21,0.00014794,2]
[351857460,1738822254027,-500.0,0.00014794,2]
[351857461,1738822254036,-500.0,0.00014794,2]
[351857462,1738822254045,-626.0,0.00014794,2]
[351857463,1738822254054,-500.0,0.00014794,2]
[351857464,1738822254064,-639.59,0.00014794,2]
[351857465,1738822254073,-626.84,0.00014794,2]
[351857466,1738822254082,-500.0,0.00014794,2]
[351857467,1738822254091,-1078.27,0.00014794,2]
[351857468,1738822254100,-500.0,0.00014794,2]
[351857469,1738822254110,-500.0,0.00014794,2]
[351857470,1738822254120,-608.57,0.00014794,2]
[351857471,1738822254130,-659.01,0.00014794,2]
[351857472,1738822254139,-1027.28,0.00014794,2]
[351857473,1738822254149,-1000.1,0.00014794,2]
[351857474,1738822254159,-500.0,0.00014794,2]
[351857475,1738822254169,-500.0,0.00014794,2]
[351857476,1738822254179,-1164.33,0.00014794,2]
[351857477,1738822254188,-603.4,0.00014794,2]
[351857478,1738822254198,-541.99,0.00014794,2]
[351857479,1738822254208,-3058.07,0.00014794,2]
[351857480,1738822254218,-589.66968144,0.00014794,2]
[351857481,1738822254228,-500.0,0.00014794,2]
[351857482,1738822254238,-301.34419279,0.00014794,2]
[351857483,1738822254248,-500.0,0.00014794,2]
[351857484,1738822254258,-500.0,0.00014794,2]
[351857485,1738822254268,-934.47,0.00014794,2]
[351857486,1738822254278,-500.0,0.00014794,2]
[351857487,1738822254288,-671.71,0.00014794,2]
[351857488,1738822254297,-800.03,0.00014794,2]
[351857489,1738822254307,-1018.89,0.00014794,2]
[351857490,1738822254317,-1566.05,0.00014794,2]
[351857491,1738822254326,-561.73,0.00014794,2]
[351857492,1738822254336,-605.36,0.00014794,2]
[351857493,1738822254345,-725.61,0.00014794,2]
[351857494,1738822254353,-1271.07,0.00014794,2]
[351857495,1738822254362,-740.24,0.00014794,2]
[351857496,1738822254371,-1350.03,0.00014794,2]
[351857497,1738822254381,-1282.71,0.00014794,2]
[351857498,1738822254391,-500.0,0.00014794,2]
[351857499,1738822254400,-500.0,0.00014794,2]
[351857500,1738822254409,-500.0,0.00014794,2]
[351857501,1738822254419,-278.34929661,0.00014794,2]
[351857502,1738822254429,-863.89,0.00014794,2]
[351857503,1738822254439,-500.0,0.00014794,2]
[351857504,1738822254448,-500.0,0.00014794,2]
[351857505,1738822254459,-500.0,0.00014794,2]
[351857506,1738822254469,-549.43,0.00014794,2]
[351857507,1738822254478,-501.99,0.00014794,2]
[351857508,1738822254487,-500.0,0.00014794,2]
[351857509,1738822254497,-500.0,0.00014794,2]
[351857510,1738822254507,-2174.68,0.00014794,2]
[351857511,1738822254518,-900.15,0.00014794,2]
[351857512,1738822254527,-500.0,0.00014794,2]
[351857513,1738822254537,-817.5,0.00014794,2]
[351857514,1738822254547,-689.49,0.00014794,2]
[351857515,1738822254556,-500.0,0.00014794,2]
[351857516,1738822254566,-2225.74,0.00014794,2]
[351857517,1738822254576,-500.0,0.00014794,2]
[351857518,1738822254585,-500.0,0.00014794,2]
[351857519,1738822254594,-509.17,0.00014794,2]
[351857520,1738822254604,-651.59,0.00014794,2]
[351857521,1738822254614,-500.0,0.00014794,2]
[351857522,1738822254624,-6536.28,0.00014794,2]
[351857523,1738822254634,-500.0,0.00014794,2]
[351857524,1738822254644,-4003.24,0.00014794,2]
[351857525,1738822254653,-990.46,0.00014794,2]
[351857526,1738822254663,-2124.74,0.00014794,2]
[351857527,1738822254673,-4141.69,0.00014794,2]
[351857528,1738822254683,-1160.64,0.00014794,2]
[351857529,1738822254692,-997.12,0.00014794,2]
[351857530,1738822254702,-878.67,0.00014794,2]
[351857531,1738822254712,-700.35,0.00014794,2]
[351857532,1738822254721,-500.0,0.00014794,2]
[351857533,1738822254731,-500.0,0.00014794,2]
[351857534,1738822254740,-2843.33,0.00014794,2]
[351857535,1738822254751,-500.0,0.00014794,2]
[351857536,1738822254762,-500.0,0.00014794,2]
[351857537,1738822254772,-2156.17,0.00014794,2]
[351857538,1738822254781,-1609.52,0.00014794,2]
[351857539,1738822254791,-500.0,0.00014794,2]
[351857540,1738822254801,-500.0,0.00014794,2]
[351857541,1738822254810,-500.0,0.00014794,2]
[351857542,1738822254820,-29373.51990525,0.00014794,2]
[351857543,1738822262776,-35202.25009475,0.00014794,2]
[351857544,1738822262786,-2044.62,0.00014794,2]
[351857545,1738822262796,-500.0,0.00014794,2]
[351857546,1738822262806,-3492.4,0.00014794,2]
[351857547,1738822262815,-411.049134,0.00014794,2]
[351857548,1738822262825,-500.0,0.00014794,2]
[351857549,1738822262834,-500.0,0.00014794,2]
[351857550,1738822262843,-411.049134,0.00014794,2]
[351857551,1738822262853,-500.0,0.00014794,2]
[351857552,1738822262863,-773.15,0.00014794,2]
[351857553,1738822262873,-3226.29,0.00014794,2]
[351857554,1738822262883,-2918.01,0.00014794,2]
[351857555,1738822262893,-527.56,0.00014794,2]
[351857556,1738822262904,-177.432692,0.00014794,2]
[351857557,1738822263081,-918.34,0.00014794,2]
[351857558,1738822263093,-22581.88,0.00014794,2]
[351857559,1738822263103,-1568.08,0.00014794,2]
[351857560,1738822263113,-177.432692,0.00014794,2]
[351857561,1738822263123,-1919.14,0.00014794,2]
[351857562,1738822263133,-500.0,0.00014794,2]
[351857563,1738822263143,-500.0,0.00014794,2]
[351857564,1738822263154,-761.39,0.00014794,2]
[351857565,1738822263165,-500.0,0.00014794,2]
[351857566,1738822263178,-151.0,0.00014794,2]
[351857567,1738822263192,-1726.57,0.00014794,2]
[351857568,1738822263204,-500.0,0.00014794,2]
[351857569,1738822263221,-2363.23,0.00014794,2]
[351857570,1738822263234,-735.32,0.00014794,2]
[351857571,1738822263249,-500.0,0.00014794,2]
[351857572,1738822263259,-554.61,0.00014794,2]
[351857573,1738822263272,-672.13,0.00014794,2]
[351857574,1738822263285,-608.4,0.00014794,2]
[351857575,1738822263302,-500.0,0.00014794,2]
[351857576,1738822263315,-659.58,0.00014794,2]
[351857577,1738822263327,-6300.08,0.00014794,2]
[351857578,1738822263338,-500.0,0.00014794,2]
[351857579,1738822263353,-864.28,0.00014794,2]
[351857580,1738822263365,-563.42,0.00014794,2]
[351857581,1738822263377,-1097.7,0.00014794,2]
[351857582,1738822263389,-535.56,0.00014794,2]
[351857583,1738822263405,-500.0,0.00014794,2]
[351857584,1738822263416,-624.42,0.00014794,2]
[351857585,1738822263427,-1837.43,0.00014794,2]
[351857586,1738822263438,-616.73,0.00014794,2]
[351857587,1738822263451,-6891.62,0.00014794,2]
[351857588,1738822263462,-1074.71,0.00014794,2]
[351857589,1738822263472,-500.0,0.00014794,2]
[351857590,1738822263482,-500.0,0.00014794,2]
[351857591,1738822263492,-982.53,0.00014794,2]
[351857592,1738822263501,-500.0,0.00014794,2]
[351857593,1738822263511,-500.0,0.00014794,2]
[351857594,1738822263521,-151.0,0.00014794,2]
[351857595,1738822263531,-699.63,0.00014794,2]
[351857596,1738822263541,-500.0,0.00014794,2]
[351857597,1738822263551,-500.0,0.00014794,2]
[351857598,1738822263560,-151.0,0.00014794,2]
[351857599,1738822263570,-500.0,0.00014794,2]
[351857600,1738822263579,-558.86,0.00014794,2]
[351857601,1738822263589,-500.0,0.00014794,2]
[351857602,1738822263599,-500.0,0.00014794,2]
[351857603,1738822263609,-500.0,0.00014794,2]
[351857604,1738822263619,-998.87,0.00014794,2]
[351857605,1738822263628,-158.61,0.00014808,2]
[351857606,1738822263638,-310.64335196,0.00014821,2]
[351857607,1738822263648,-1000.0,0.00014821,2]
[351857608,1738822263658,-1000.0,0.00014821,2]
[351857609,1738822263667,-2144.49173166,0.000149,2]
[351857610,1738822263676,-567.93601276,0.000149,2]
[351857611,1738822263686,-288.60561335,0.000149,2]
[351857612,1738822263696,-199.95161347,0.00014925,2]
[351857613,1738822263706,-500.0,0.00014931,2]
[351857614,1738822263715,-581.43,0.00014931,2]
[351857615,1738822263725,-141.92161405,0.00014931,2]
[351857616,1738822263886,-487.14838595,0.00014931,2]
[351857617,1738822263896,-583.65,0.00014931,2]
[351857618,1738822263906,-500.0,0.00014931,2]
[351857619,1738822263918,-192.56593181,0.00014931,2]
[351857620,1738822264531,-307.43406819,0.00014931,2]
[351857621,1738822264541,-500.0,0.00014931,2]
[351857622,1738822264551,-500.0,0.00014931,2]
[351857623,1738822264562,-500.0,0.00014931,2]
[351857624,1738822264574,-605.28,0.00014931,2]
[351857625,1738822264584,-500.0,0.00014931,2]
[351857626,1738822264594,-500.0,0.00014931,2]
[351857627,1738822264604,-927.14,0.00014931,2]
[351857628,1738822264614,-500.0,0.00014931,2]
[351857629,1738822264624,-636.61,0.00014931,2]
[351857630,1738822264633,-710.94,0.00014931,2]
[351857631,1738822264642,-500.0,0.00014931,2]
[351857632,1738822264652,-596.81,0.00014931,2]
[351857633,1738822264663,-718.41,0.00014931,2]
[351857634,1738822264673,-358.66464381,0.00014931,2]
[351857641,1738822270171,-141.33535619,0.00014931,2]
[351857642,1738822270182,-500.0,0.00014931,2]
[351857643,1738822270191,-500.0,0.00014931,2]
[351857644,1738822270201,-500.0,0.00014931,2]
[351857645,1738822270211,-686.86,0.00014931,2]
[351857646,1738822270220,-487.24118303,0.00014931,2]
[351857647,1738822270230,-627.32,0.00014931,2]
[351857648,1738822270240,-503.64,0.00014931,2]
[351857649,1738822270249,-962.59,0.00014931,2]
[351857650,1738822270260,-500.0,0.00014931,2]
[351857652,1738822270270,-684.0,0.00014931,2]
[351857653,1738822270280,-500.0,0.00014931,2]
[351857654,1738822270289,-500.0,0.00014931,2]
[351857655,1738822270299,-500.0,0.00014931,2]
[351857656,1738822270309,-1220.69,0.00014931,2]
[351857657,1738822270319,-500.0,0.00014931,2]
[351857658,1738822270329,-664.19,0.00014931,2]
[351857659,1738822270338,-603.78,0.00014931,2]
[351857660,1738822270347,-500.0,0.00014931,2]
[351857661,1738822270358,-500.0,0.00014931,2]
[351857662,1738822270367,-500.0,0.00014931,2]
[351857663,1738822270377,-929.79,0.00014931,2]
[351857664,1738822270387,-500.0,0.00014931,2]
[351857665,1738822270396,-594.09,0.00014931,2]
[351857666,1738822270405,-858.78,0.00014931,2]
[351857667,1738822270418,-2224.99,0.00014931,2]
[351857668,1738822270428,-813.82,0.00014931,2]
[351857669,1738822270437,-500.0,0.00014931,2]
[351857670,1738822270447,-547.96657509,0.00014931,2]
[351857671,1738822270464,-844.65,0.00014931,2]
[351857672,1738822270476,-2202.19,0.00014931,2]
[351857673,1738822270486,-389.54491019,0.00014931,2]
[351857674,1738822270496,-689.2,0.00014931,2]
[351857675,1738822270506,-500.0,0.00014931,2]
[351857676,1738822270516,-500.0,0.00014931,2]
[351857677,1738822270526,-1474.55,0.00014931,2]
[351857678,1738822270536,-500.0,0.00014931,2]
[351857679,1738822270546,-500.0,0.00014931,2]
[351857680,1738822270556,-500.21,0.00014931,2]
[351857681,1738822270566,-500.0,0.00014931,2]
[351857682,1738822270576,-500.0,0.00014931,2]
[351857684,1738822270585,-626.0,0.00014931,2]
[351857685,1738822270595,-500.0,0.00014931,2]
[351857686,1738822270605,-639.59,0.00014931,2]
[351857687,1738822270615,-626.84,0.00014931,2]
[351857688,1738822270624,-500.0,0.00014931,2]
[351857689,1738822270634,-1078.27,0.00014931,2]
[351857690,1738822270643,-500.0,0.00014931,2]
[351857691,1738822270653,-500.0,0.00014931,2]
[351857692,1738822270663,-608.57,0.00014931,2]
[351857693,1738822270673,-659.01,0.00014931,2]
[351857694,1738822270683,-1027.28,0.00014931,2]
[351857695,1738822270692,-1000.1,0.00014931,2]
[351857696,1738822270702,-500.0,0.00014931,2]
[351857697,1738822270712,-500.0,0.00014931,2]
[351857698,1738822270722,-1164.33,0.00014931,2]
[351857699,1738822270732,-603.4,0.00014931,2]
[351857700,1738822270741,-541.99,0.00014931,2]
[351857701,1738822270753,-3058.07,0.00014931,2]
[351857702,1738822270763,-500.0,0.00014931,2]
[351857703,1738822270774,-500.0,0.00014931,2]
[351857704,1738822270784,-276.21092118,0.00014931,2]
[351857705,1738822270794,-934.47,0.00014931,2]
[351857706,1738822270804,-500.0,0.00014931,2]
[351857707,1738822270814,-671.71,0.00014931,2]
[351857708,1738822270824,-800.03,0.00014931,2]
[351857709,1738822270834,-1018.89,0.00014931,2]
[351857710,1738822270845,-1566.05,0.00014931,2]
[351857711,1738822270855,-561.73,0.00014931,2]
[351857712,1738822270865,-605.36,0.00014931,2]
[351857713,1738822270881,-725.61,0.00014931,2]
[351857714,1738822270891,-1271.07,0.00014931,2]
[351857715,1738822270901,-740.24,0.00014931,2]
[351857717,1738822270913,-1350.03,0.00014931,2]
[351857718,1738822270924,-1282.71,0.00014931,2]
[351857719,1738822270935,-626.7905281,0.00014931,2]
[351857720,1738822270944,-500.0,0.00014931,2]
[351857721,1738822270954,-500.0,0.00014931,2]
[351857722,1738822270966,-863.89,0.00014931,2]
[351857723,1738822270975,-500.0,0.00014931,2]
[351857724,1738822270985,-500.0,0.00014931,2]
[351857725,1738822270996,-500.0,0.00014931,2]
[351857726,1738822271006,-549.43,0.00014931,2]
[351857727,1738822271016,-501.99,0.00014931,2]
[351857728,1738822271026,-500.0,0.00014931,2]
[351857729,1738822271036,-500.0,0.00014931,2]
[351857730,1738822271045,-2174.68,0.00014931,2]
[351857731,1738822271056,-900.15,0.00014931,2]
[351857732,1738822271066,-500.0,0.00014931,2]
[351857733,1738822271076,-817.5,0.00014931,2]
[351857734,1738822271086,-689.49,0.00014931,2]
[351857735,1738822271096,-500.0,0.00014931,2]
[351857736,1738822271106,-2225.74,0.00014931,2]
[351857737,1738822271116,-500.0,0.00014931,2]
[351857738,1738822271127,-500.0,0.00014931,2]
[351857739,1738822271137,-509.17,0.00014931,2]
[351857740,1738822271147,-651.59,0.00014931,2]
[351857741,1738822271157,-500.0,0.00014931,2]
[351857742,1738822271167,-6536.28,0.00014931,2]
[351857743,1738822271177,-500.0,0.00014931,2]
[351857744,1738822271187,-4003.24,0.00014931,2]
[351857745,1738822271196,-990.46,0.00014931,2]
[351857746,1738822271206,-677.46890722,0.00014931,2]
[351857748,1738822271253,-1447.27109278,0.00014931,2]
[351857749,1738822271263,-4141.69,0.00014931,2]
[351857750,1738822271273,-1160.64,0.00014931,2]
[351857751,1738822271283,-997.12,0.00014931,2]
[351857752,1738822271292,-878.67,0.00014931,2]
[351857753,1738822271302,-700.35,0.00014931,2]
[351857754,1738822271312,-500.0,0.00014931,2]
[351857755,1738822271322,-500.0,0.00014931,2]
[351857756,1738822271331,-2843.33,0.00014931,2]
[351857757,1738822271506,-500.0,0.00014931,2]
[351857758,1738822271516,-500.0,0.00014931,2]
[351857759,1738822271526,-2156.17,0.00014931,2]
[351857760,1738822271535,-1609.52,0.00014931,2]
[351857762,1738822271545,-500.0,0.00014931,2]
[351857763,1738822271554,-500.0,0.00014931,2]
[351857764,1738822271563,-500.0,0.00014931,2]
[351857765,1738822271572,-64575.77,0.00014931,2]
[351857766,1738822271582,-2044.62,0.00014931,2]
[351857767,1738822271591,-500.0,0.00014931,2]
[351857768,1738822271600,-3492.4,0.00014931,2]
[351857769,1738822271609,-411.049134,0.00014931,2]
[351857770,1738822271618,-500.0,0.00014931,2]
[351857771,1738822271627,-500.0,0.00014931,2]
[351857772,1738822271637,-411.049134,0.00014931,2]
[351857773,1738822271646,-262.71037777,0.00014931,2]
[351857774,1738822271656,-773.15,0.00014931,2]
[351857775,1738822271665,-3226.29,0.00014931,2]
[351857776,1738822271675,-2918.01,0.00014931,2]
[351857777,1738822271684,-527.56,0.00014931,2]
[351857778,1738822271694,-177.432692,0.00014931,2]
[351857779,1738822271704,-918.34,0.00014931,2]
[351857780,1738822271713,-22581.88,0.00014931,2]
[351857781,1738822271723,-1568.08,0.00014931,2]
[351857782,1738822271732,-177.432692,0.00014931,2]
[351857783,1738822271741,-1919.14,0.00014931,2]
[351857784,1738822271751,-500.0,0.00014931,2]
[351857785,1738822271761,-500.0,0.00014931,2]
[351857786,1738822271770,-761.39,0.00014931,2]
[351857787,1738822271779,-500.0,0.00014931,2]
[351857788,1738822271789,-151.0,0.00014931,2]
[351857789,1738822271798,-1726.57,0.00014931,2]
[351857790,1738822271807,-500.0,0.00014931,2]
[351857791,1738822271817,-2363.23,0.00014931,2]
[351857792,1738822271826,-667.5545452,0.00014931,2]
[351857794,1738822272075,-867.27,0.0001452,2]
[351857795,1738822272085,-122.082,0.00014657,2]
[351857796,1738822272098,-745.188,0.00014657,2]